bitfinex/quotes_ETHUSD_20260225
["timestamp","ask_amount","ask_price","bid_price","bid_amount"]
[1771982209200,1.575,1910.1,1908.8,7.35945135]
[1771982209367,2.88384121,1910.1,1908.9,30.0]
[1771982209571,2.88384121,1910.1,1908.9,7.031449]
[1771982209572,1.575,1910.1,1908.9,7.031449]
[1771982209886,5.11157663,1910.7,1909.4,30.0]
[1771982210081,5.11157663,1910.6,1909.0,0.08192]
[1771982210272,5.11157663,1910.6,1908.6,17.523174]
[1771982210472,5.11157663,1910.6,1908.6,3.987272]
[1771982210675,5.11157663,1910.6,1909.3,7.35945135]
[1771982210889,5.11157663,1910.6,1909.6,6.052877]
[1771982211086,5.11157663,1910.5,1909.5,1.30924325]
[1771982211820,5.11157663,1910.5,1908.9,4.97876]
[1771982212019,5.11157663,1910.5,1908.9,2.990331]
[1771982212894,2.88331637,1910.9,1909.3,30.0]
[1771982213441,5.11157663,1910.8,1909.1,5.21305067]
[1771982213606,5.11157663,1910.8,1909.2,5.108332]
[1771982213810,5.11157663,1910.6,1909.1,6.783341]
[1771982214125,5.11157663,1910.6,1909.2,11.258573]
[1771982214498,5.11157663,1910.6,1909.1,2.097]
[1771982214716,5.11157663,1910.5,1909.0,1.31058617]
[1771982214927,5.11157663,1910.2,1909.0,0.001]
[1771982215310,4.87380375,1909.9,1908.9,0.001]
[1771982215505,4.87380375,1909.7,1908.9,0.001]
[1771982215719,4.87380375,1910.2,1908.9,0.001]
[1771982215918,1.31060918,1910.5,1909.1,5.21305067]
[1771982216117,4.87380375,1910.4,1909.0,5.815447]
[1771982216326,4.87380375,1910.4,1909.0,5.340286]
[1771982216630,4.87380375,1910.4,1908.9,0.001]
[1771982216833,4.87380375,1910.2,1908.9,1.31065477]
[1771982217525,1.31056214,1910.5,1909.2,30.0]
[1771982217840,0.002,1910.5,1909.4,5.21305067]
[1771982218004,0.002,1910.5,1909.8,14.29681]
[1771982218203,0.002,1910.5,1909.8,5.013592]
[1771982218443,0.002,1910.5,1909.5,8.489743]
[1771982218444,1.3105586,1910.5,1909.5,8.489743]
[1771982218682,6.18436235,1910.5,1909.2,4.824989]
[1771982218850,4.87380375,1910.2,1909.0,5.984277]
[1771982219051,4.87380375,1910.2,1908.9,0.001]
[1771982219672,4.87380375,1910.2,1909.0,14.693336]
[1771982220379,4.87380375,1910.2,1909.2,20.723548]
[1771982220589,0.002,1910.5,1909.2,20.723548]
[1771982220761,4.87380375,1910.4,1909.0,24.505977]
[1771982220967,4.87380375,1910.1,1908.9,0.001]
[1771982221170,4.87380375,1909.6,1908.7,0.001]
[1771982221388,4.87380375,1909.6,1908.1,1.31016146]
[1771982221389,4.87380375,1909.5,1908.1,1.31016146]
[1771982221552,2.88169496,1910.3,1908.1,1.31016146]
[1771982221553,0.002,1910.5,1909.4,10.42610134]
[1771982221758,0.003,1912.0,1909.4,10.42610134]
[1771982221759,5.37573253,1912.0,1910.3,30.0]
[1771982221956,7.36702432,1912.5,1912.4,16.75163001]
[1771982222178,4.87380375,1912.1,1910.5,0.2735]
[1771982222695,4.87380375,1912.1,1910.6,10.099525]
[1771982222899,4.87380375,1912.1,1910.7,1.30842099]
[1771982223107,2.49322057,1912.5,1910.8,10.099525]
[1771982223272,3.8004616,1912.5,1911.0,5.21305067]
[1771982223471,0.1482038,1913.1,1911.1,10.099525]
[1771982223472,5.37556026,1913.1,1911.1,10.099525]
[1771982223674,5.37556026,1913.1,1911.0,5.21305067]
[1771982223675,1.45499893,1913.1,1911.6,10.099525]
[1771982223879,1.45499893,1913.1,1911.9,5.21305067]
[1771982224075,4.87380375,1913.0,1911.7,10.099525]
[1771982224274,1.45499893,1913.1,1911.0,0.18685624]
[1771982224275,4.87380375,1912.8,1911.0,5.21305067]
[1771982224665,4.87380375,1912.5,1910.8,6.551152]
[1771982224887,1.30725789,1912.4,1910.9,1.30828405]
[1771982225212,4.87380375,1912.4,1911.1,10.099525]
[1771982225409,1.30698452,1912.8,1911.6,5.21305067]
[1771982225575,1.30698452,1912.8,1911.2,15.31257567]
[1771982225879,4.87380375,1912.9,1911.2,5.21305067]
[1771982226074,4.87380375,1912.9,1911.3,10.099525]
[1771982226295,4.87380375,1912.5,1910.9,1.30828405]
[1771982226467,4.87380375,1912.5,1911.2,5.21305067]
[1771982226673,4.87380375,1912.5,1911.3,5.143817]
[1771982226898,4.87380375,1912.5,1910.7,5.23313621]
[1771982226899,10.08685442,1911.4,1910.6,5.23313621]
[1771982227200,7.36702432,1909.5,1909.0,16.48884888]
[1771982227408,2.18854291,1909.2,1907.6,10.08640306]
[1771982227613,2.18854291,1909.2,1907.7,20.456]
[1771982227772,2.18854291,1909.2,1907.6,5.21305067]
[1771982228101,2.18854291,1909.2,1907.5,5.21305067]
[1771982228400,5.797027,1908.9,1907.2,13.448384]
[1771982228601,5.797027,1908.9,1907.1,4.87335239]
[1771982228602,2.18854291,1909.2,1907.7,30.0]
[1771982228784,2.18854291,1909.2,1908.9,0.001]
[1771982229105,2.07973545,1909.2,1908.9,0.001]
[1771982229288,1.30951757,1909.1,1908.9,0.001]
[1771982229600,2.07973545,1909.2,1908.9,0.001]
[1771982229601,2.02850217,1909.2,1908.9,0.001]
[1771982230007,0.86518174,1909.2,1908.9,0.001]
[1771982230166,4.5584022,1911.5,1908.9,0.001]
[1771982230167,1.30801025,1911.3,1909.3,0.71701201]
[1771982230373,5.73388523,1911.5,1910.3,5.21305067]
[1771982230692,4.87380375,1911.2,1909.3,6.554049]
[1771982230890,4.87380375,1910.9,1909.3,10.989981]
[1771982231079,1.30705285,1912.7,1910.8,14.871783]
[1771982231279,1.30705285,1912.7,1910.5,4.87335239]
[1771982231280,1.30718954,1912.5,1911.0,19.6479898]
[1771982231478,4.87380375,1912.6,1911.4,28.544768]
[1771982231718,4.87380375,1912.6,1911.4,28.084098]
[1771982231875,6.18093415,1912.6,1911.0,18.969782]
[1771982232204,1.30714304,1912.6,1911.0,18.299553]
[1771982232412,0.002,1912.9,1911.7,30.0]
[1771982232593,11.39577967,1912.9,1911.0,25.8836]
[1771982232780,11.39577967,1912.9,1910.4,6.4436688]
[1771982232781,5.21305067,1912.6,1910.6,6.52152698]
[1771982232989,5.21305067,1912.6,1910.7,8.813606]
[1771982233208,4.87380375,1912.8,1910.9,5.21305067]
[1771982233382,1.30705285,1912.7,1911.2,5.21305067]
[1771982233589,1.30702332,1912.8,1911.3,14.739652]
[1771982233793,1.30893434,1912.9,1911.6,19.694426]
[1771982233989,0.002,1912.9,1911.9,22.494917]
[1771982234173,0.002,1912.9,1911.0,11.7342799]
[1771982234174,6.18272298,1912.9,1911.1,0.18685624]
[1771982234372,1.30894197,1912.9,1911.9,6.38116]
[1771982234600,1.30891939,1912.9,1911.6,11.022065]
[1771982234798,0.002,1912.9,1911.6,10.663531]
[1771982234989,0.002,1912.9,1912.1,5.21305067]
[1771982235302,0.002,1912.9,1911.6,30.0]
[1771982235507,0.002,1912.9,1911.9,20.673285]
[1771982235716,0.003,1913.6,1912.2,5.21305067]
[1771982235898,1.30944122,1913.6,1912.1,35.21305067]
[1771982236203,0.003,1913.6,1912.4,15.02616]
[1771982236412,10.08685442,1913.5,1911.3,34.86144392]
[1771982236615,4.87380375,1914.8,1913.1,5.21305067]
[1771982236908,4.87380375,1914.8,1912.9,30.0]
[1771982236909,6.17943737,1914.8,1913.5,4.077405]
[1771982237204,1.305448,1915.1,1913.5,5.21305067]
[1771982237407,5.22165944,1915.2,1913.4,0.26877624]
[1771982237408,5.22028921,1915.7,1914.2,15.901819]
[1771982237716,8.36239713,1916.3,1914.7,5.21305067]
[1771982237717,6.17843877,1916.3,1914.7,5.21305067]
[1771982237912,0.1482038,1916.8,1914.3,0.08192]
[1771982237913,1.30432514,1916.7,1915.1,22.160971]
[1771982238214,5.21305067,1916.3,1914.4,5.21305067]
[1771982238507,1.45248986,1916.8,1915.3,5.21305067]
[1771982238813,1.45246741,1916.8,1915.0,10.52712113]
[1771982238986,1.45246741,1916.8,1915.2,30.0]
[1771982239180,0.1482038,1916.8,1915.5,5.21305067]
[1771982239380,0.1482038,1916.8,1915.6,15.610514]
[1771982239577,10.08685442,1916.4,1914.6,0.08192]
[1771982239788,5.21305067,1915.5,1913.7,6.059645]
[1771982240012,2.49322057,1915.7,1913.1,30.0]
[1771982240013,5.21305067,1914.9,1913.1,30.0]
[1771982240311,5.21305067,1915.2,1913.1,5.21305067]
[1771982240510,5.21305067,1915.2,1913.2,17.983302]
[1771982240841,5.21305067,1915.2,1913.1,5.21305067]
[1771982240842,15.63915201,1915.0,1912.3,30.0]
[1771982241014,5.21305067,1914.4,1912.6,30.0]
[1771982241308,5.21305067,1915.2,1912.9,0.08192]
[1771982241484,0.002,1914.7,1913.2,14.167914]
[1771982241688,0.002,1914.7,1912.7,9.438006]
[1771982241689,5.21305067,1914.3,1912.7,9.438006]
[1771982241909,10.08685442,1914.3,1912.5,4.561795]
[1771982242080,4.87380375,1914.3,1912.5,4.561795]
[1771982242413,4.87380375,1914.0,1912.2,10.582601]
[1771982242629,5.21305067,1914.5,1912.4,5.21305067]
[1771982242782,5.21305067,1914.2,1912.6,2.255545]
[1771982243205,5.21305067,1913.6,1912.1,3.926736]
[1771982243413,1.3065064,1913.5,1912.1,14.07913366]
[1771982243612,1.30623334,1913.9,1912.2,10.796189]
[1771982243911,1.30623334,1913.9,1912.0,10.784224]
[1771982243912,5.21305067,1913.8,1912.0,10.784224]
[1771982244087,5.21305067,1913.8,1911.8,5.095583]
[1771982244088,5.21305067,1913.5,1911.8,5.095583]
[1771982244448,1.30623334,1913.9,1912.3,5.982229]
[1771982244645,10.08685442,1913.8,1911.8,12.635128]
[1771982244832,4.87380375,1913.7,1911.8,7.86802]
[1771982245019,4.87380375,1913.7,1912.0,21.468141]
[1771982245410,4.87380375,1913.7,1911.8,30.0]
[1771982245734,4.87380375,1913.7,1912.0,30.0]
[1771982245947,4.87380375,1913.7,1911.9,2.072]
[1771982245948,4.87380375,1913.7,1912.1,2.071]
[1771982246238,4.87380375,1913.7,1912.2,2.07]
[1771982246440,5.21305067,1913.5,1912.3,2.069]
[1771982246608,4.87380375,1913.7,1909.1,7.20833181]
[1771982246810,5.21305067,1913.8,1909.0,1.87957297]
[1771982246811,5.21305067,1913.2,1911.6,19.422092]
[1771982247007,5.21305067,1912.3,1910.4,5.21305067]
[1771982247207,6.27086881,1912.3,1910.6,4.001929]
[1771982247537,6.27086881,1912.3,1910.1,28.94335567]
[1771982247538,11.48391948,1912.3,1910.1,28.94335567]
[1771982247839,5.21305067,1912.0,1910.3,3.833969]
[1771982248052,5.21305067,1911.7,1910.1,3.101427]
[1771982248386,5.21305067,1911.7,1909.9,8.02858]
[1771982248649,6.27086881,1911.7,1910.1,5.020014]
[1771982248850,5.21305067,1911.4,1909.5,5.21305067]
[1771982249059,5.21305067,1911.3,1909.6,16.804733]
[1771982249209,5.21305067,1911.3,1909.7,2.066]
[1771982249210,6.27086881,1911.3,1909.7,2.066]
[1771982249538,9.02039067,1911.9,1910.4,10.38496]
[1771982249738,6.27086881,1911.8,1909.7,5.21305067]
[1771982249940,5.21305067,1911.6,1910.0,11.712985]
[1771982250108,5.21305067,1911.6,1909.8,0.08192]
[1771982250304,5.21305067,1911.6,1909.4,8.35305067]
[1771982250305,5.21305067,1911.3,1909.4,8.35305067]
[1771982250540,5.21305067,1911.3,1909.8,10.5993]
[1771982250716,6.27086881,1911.6,1910.0,5.21305067]
[1771982250923,11.48391948,1911.6,1909.8,10.5993]
[1771982251121,5.21305067,1911.3,1909.8,5.77567]
[1771982251443,6.27086881,1911.5,1910.0,19.724169]
[1771982251619,7.96257253,1911.9,1910.0,12.925618]
[1771982252011,5.21305067,1911.3,1909.4,5.21305067]
[1771982252233,5.21305067,1911.3,1909.8,23.865586]
[1771982252434,5.21305067,1911.3,1910.0,14.926351]
[1771982252635,5.21305067,1911.5,1910.0,13.887268]
[1771982252855,5.21305067,1911.8,1910.2,18.90515]
[1771982253053,5.21305067,1911.8,1910.2,14.245332]
[1771982253251,5.21305067,1911.8,1910.2,10.500642]
[1771982253452,5.21305067,1911.4,1910.3,2.065]
[1771982253657,5.21305067,1911.8,1910.4,2.065]
[1771982253832,5.21305067,1911.5,1910.5,2.065]
[1771982254027,5.21305067,1910.9,1909.2,6.46075783]
[1771982254227,5.21305067,1910.9,1909.3,2.367551]
[1771982254458,5.21305067,1910.6,1909.4,2.064]
[1771982254644,15.63915201,1911.0,1909.4,2.064]
[1771982254645,5.21305067,1911.0,1909.4,2.064]
[1771982254959,5.21305067,1911.0,1908.9,5.21405067]
[1771982254960,5.21305067,1910.2,1908.9,2.064]
[1771982255143,5.21305067,1910.2,1909.0,2.065]
[1771982255341,5.21305067,1910.5,1909.0,2.065]
[1771982255665,5.21305067,1911.1,1910.0,0.001]
[1771982255901,5.21305067,1911.4,1910.1,2.063]
[1771982256052,11.48391948,1911.8,1910.0,0.001]
[1771982256053,5.21305067,1911.1,1910.0,0.001]
[1771982256258,5.21305067,1911.1,1910.1,2.062]
[1771982256562,5.21223707,1911.3,1910.2,2.062]
[1771982256731,5.21223707,1911.6,1910.2,2.062]
[1771982256934,5.21223707,1911.6,1910.3,2.062]
[1771982257139,5.21223707,1911.6,1910.0,0.001]
[1771982257343,5.21223707,1911.3,1910.1,2.061]
[1771982257550,5.21223707,1911.3,1910.2,2.061]
[1771982257750,5.21223707,1911.0,1910.0,0.001]
[1771982257956,5.21223707,1911.3,1910.0,0.001]
[1771982258378,6.27086881,1911.7,1910.0,0.001]
[1771982258379,5.21223707,1910.7,1910.0,0.001]
[1771982258575,5.21223707,1911.0,1910.0,0.001]
[1771982259367,5.21223707,1910.7,1910.0,0.001]
[1771982259683,5.21223707,1910.7,1907.7,3.42587185]
[1771982259684,5.21223707,1910.1,1908.2,6.80460321]
[1771982259891,5.21223707,1909.9,1908.4,2.06]
[1771982260184,5.21223707,1909.6,1907.6,6.46075783]
[1771982260382,5.21223707,1909.6,1908.5,2.025]
[1771982260685,5.21223707,1909.3,1908.0,2.06]
[1771982261268,11.48310588,1909.3,1907.6,0.08192]
[1771982261473,5.21223707,1909.6,1907.0,6.46075783]
[1771982261785,6.27086881,1909.8,1908.2,11.25688]
[1771982261988,6.27086881,1909.8,1907.9,0.26877624]
[1771982262478,5.21223707,1909.9,1908.1,0.08192]
[1771982262669,6.27086881,1910.4,1908.2,30.0]
[1771982262670,5.21223707,1910.2,1908.2,30.0]
[1771982263174,5.21223707,1910.2,1908.2,16.183401]
[1771982263440,11.48310588,1909.0,1907.0,5.662326]
[1771982263570,11.48310588,1909.0,1907.1,3.852011]
[1771982263965,11.48310588,1909.0,1907.3,10.226754]
[1771982264196,11.48310588,1909.0,1907.3,8.025997]
[1771982264412,6.27086881,1908.9,1907.4,2.056]
[1771982264607,5.21223707,1909.3,1907.0,30.0]
[1771982264894,5.21223707,1909.3,1907.6,13.29834]
[1771982265277,5.21223707,1909.3,1907.6,11.65274]
[1771982265477,5.21223707,1909.9,1907.8,10.290473]
[1771982265694,11.48310588,1909.9,1907.8,7.503316]
[1771982266191,6.27086881,1909.8,1907.8,7.503316]
[1771982266373,11.48310588,1909.6,1907.9,2.052]
[1771982266560,11.48310588,1909.6,1908.0,4.87335]
[1771982266765,11.48310588,1909.6,1907.5,6.64761407]
[1771982266766,11.48310588,1909.6,1908.1,2.049]
[1771982266989,11.48310588,1909.6,1907.6,0.08192]
[1771982267190,5.21223707,1909.3,1907.5,6.46075783]
[1771982267391,5.21223707,1909.3,1907.4,0.08192]
[1771982267693,5.21223707,1909.0,1907.6,4.247]
[1771982267887,5.21223707,1909.0,1907.3,3.808733]
[1771982268084,5.21223707,1908.7,1907.2,3.144]
[1771982268285,5.21223707,1908.7,1906.2,6.46075783]
[1771982268477,5.21223707,1908.7,1906.9,0.08192]
[1771982268681,5.21223707,1908.7,1907.0,30.0]
[1771982268878,6.27086881,1908.9,1907.0,30.0]
[1771982269676,5.21223707,1908.7,1907.0,6.735]
[1771982269877,6.27086881,1908.6,1907.0,8.049588]
[1771982270084,6.27086881,1908.6,1907.6,0.001]
[1771982271698,11.48310588,1909.0,1907.6,0.001]
[1771982271899,5.21223707,1908.7,1907.6,0.001]
[1771982272102,5.22703154,1908.6,1907.6,0.001]
[1771982272401,5.22703154,1908.3,1907.3,0.001]
[1771982272601,5.22703154,1908.0,1907.3,0.001]
[1771982273174,5.22703154,1907.7,1906.1,0.001]
[1771982273375,13.59621328,1907.9,1906.2,5.809841]
[1771982273603,13.59621328,1907.9,1906.2,3.82752]
[1771982274023,7.32534447,1907.5,1906.1,0.001]
[1771982274308,6.27086881,1907.7,1906.1,0.001]
[1771982274981,13.59621328,1908.3,1906.3,6.46075783]
[1771982275210,13.59621328,1908.3,1906.4,12.123933]
[1771982275211,6.27086881,1908.3,1906.4,12.123933]
[1771982275382,6.27086881,1908.3,1906.5,12.534337]
[1771982275724,7.32534447,1908.7,1906.9,6.12758694]
[1771982276218,13.23988728,1908.7,1906.9,6.12758694]
[1771982276579,5.91454281,1908.7,1906.9,6.12758694]
[1771982277603,8.60971666,1909.2,1907.1,6.20950694]
[1771982277803,8.60971666,1909.2,1907.2,14.19636]
[1771982278204,5.91454281,1909.1,1907.1,6.20950694]
[1771982278438,5.91454281,1909.1,1907.3,6.039824]
[1771982278620,5.91454281,1909.1,1907.2,14.440884]
[1771982278910,5.91454281,1909.1,1907.2,16.63602]
[1771982279286,5.91454281,1909.1,1907.2,3.607465]
[1771982280304,7.32534447,1908.5,1906.8,3.146]
[1771982280525,5.91454281,1908.8,1906.9,26.50014394]
[1771982280676,5.91454281,1908.8,1907.1,6.12758694]
[1771982281082,8.60971666,1909.2,1907.2,17.86913294]
[1771982281381,2.69517385,1909.2,1907.5,0.08192]
[1771982281588,5.21268138,1910.3,1908.2,6.12758694]
[1771982281589,5.91454281,1910.1,1908.2,6.12758694]
[1771982281937,2.74952186,1910.3,1908.5,7.32534447]
[1771982282082,5.91454281,1910.6,1908.8,7.113998]
[1771982282301,5.91454281,1910.6,1908.6,3.146]
[1771982282302,7.32534447,1910.3,1908.6,3.146]
[1771982282610,1.30876348,1910.2,1908.6,3.146]
[1771982282816,1.30876348,1910.2,1908.7,21.921269]
[1771982283015,1.30876348,1910.2,1908.7,20.400528]
[1771982283229,12.55877256,1910.8,1909.0,6.12758694]
[1771982283530,1.30842099,1910.7,1909.2,9.128393]
[1771982283703,1.30842099,1910.7,1909.3,8.890777]
[1771982283900,1.30842099,1910.7,1909.4,30.0]
[1771982284102,1.30842099,1910.7,1909.3,6.12758694]
[1771982284103,1.30821559,1911.0,1909.7,6.12758694]
[1771982284309,1.30816651,1911.1,1909.9,28.783997]
[1771982284520,5.23151645,1911.5,1909.9,0.40166754]
[1771982284740,7.32534447,1911.2,1909.8,6.12758694]
[1771982285041,0.002,1910.5,1909.2,6.12758694]
[1771982285200,0.002,1910.5,1908.7,6.20950694]
[1771982285403,0.002,1910.5,1908.9,6.12758694]
[1771982285636,0.002,1910.5,1909.0,4.23655]
[1771982286131,7.32534447,1910.3,1908.5,3.238377]
[1771982286344,13.23988728,1910.3,1908.5,2.413777]
[1771982286503,1.30876348,1910.2,1908.5,1.30990692]
[1771982286704,1.30876348,1910.2,1908.4,4.45595487]
[1771982286705,7.22330629,1910.2,1908.4,4.45595487]
[1771982287130,7.32534447,1909.9,1908.4,3.146]
[1771982287330,7.32534447,1909.9,1908.4,4.45599172]
[1771982287331,5.91454281,1909.9,1908.4,4.45599172]
[1771982287905,1.30876348,1910.2,1908.5,30.0]
[1771982288239,1.30876348,1910.2,1908.4,4.45599172]
[1771982288434,1.30876348,1910.2,1908.5,16.57455594]
[1771982288612,5.23505392,1910.3,1908.8,23.569352]
[1771982288804,5.23505392,1910.3,1908.8,20.05701]
[1771982289004,5.23505392,1910.3,1908.7,7.43737894]
[1771982289503,18.4749412,1910.3,1908.5,1.30992926]
[1771982289834,5.23505392,1910.3,1908.6,6.12758694]
[1771982290014,5.91454281,1910.2,1908.4,4.4559482]
[1771982290528,1.30883199,1910.1,1908.6,1.30986063]
[1771982290842,1.30883199,1910.1,1908.6,5.69157]
[1771982291157,5.91454281,1909.8,1908.4,4.45597333]
[1771982291441,1.30883199,1910.1,1908.4,4.45597333]
[1771982291738,7.32534447,1909.9,1908.4,3.146]
[1771982292037,5.91454281,1909.8,1908.4,3.146]
[1771982292527,1.30910614,1909.7,1908.4,3.146]
[1771982293133,1.30910614,1909.7,1907.8,4.45636626]
[1771982293134,7.32534447,1909.5,1907.8,4.45636626]
[1771982293332,4.00427999,1909.7,1907.9,2.383894]
[1771982293533,5.91454281,1909.6,1907.9,2.383894]
[1771982293947,5.91454281,1909.6,1907.9,4.841]
[1771982294107,5.91454281,1909.4,1907.8,3.146]
[1771982294623,4.00427999,1909.7,1907.8,3.146]
[1771982294624,5.23642456,1909.8,1908.3,24.527993]
[1771982294804,5.23642456,1909.8,1908.4,21.027475]
[1771982295007,7.22330629,1910.2,1908.5,4.308525]
[1771982295206,7.22330629,1910.2,1908.6,0.44673438]
[1771982295404,5.91454281,1910.1,1908.6,0.01048351]
[1771982295605,8.63410795,1910.2,1908.2,2.6840025]
[1771982295606,1.30876348,1910.2,1908.4,6.12758694]
[1771982295915,7.22330629,1910.2,1908.6,8.479886]
[1771982296121,7.22330629,1910.2,1908.7,0.43332251]
[1771982296323,7.22330629,1910.2,1908.8,1.573]
[1771982296650,5.23451379,1910.4,1908.9,1.74297728]
[1771982296853,5.23451379,1910.4,1908.9,1.30965477]
[1771982297055,1.30862646,1910.4,1909.0,26.29048894]
[1771982297341,0.002,1910.5,1909.2,14.82916894]
[1771982297560,1.31054001,1910.6,1909.5,3.283963]
[1771982297561,0.002,1910.6,1909.5,3.283963]
[1771982297711,0.003,1911.0,1909.8,26.870099]
[1771982298029,0.003,1911.0,1909.9,10.147114]
[1771982298208,1.31256731,1912.0,1910.3,27.910639]
[1771982298542,7.22711012,1912.0,1910.2,1.30876348]
[1771982298701,7.22711012,1912.0,1910.3,7.042589]
[1771982298910,7.32534447,1911.3,1909.5,3.146]
[1771982299107,5.91454281,1911.2,1909.5,3.146]
[1771982299336,27.07307396,1912.0,1909.6,22.81475957]
[1771982299337,13.23988728,1911.7,1909.6,22.81475957]
[1771982299639,1.39448731,1912.0,1909.5,3.146]
[1771982299640,13.23988728,1911.2,1909.5,3.146]
[1771982299839,0.002,1910.4,1909.5,3.146]
[1771982300640,0.002,1910.4,1909.5,4.45521275]
[1771982301633,0.002,1910.4,1909.5,3.146]
[1771982301836,0.002,1910.4,1909.5,4.45522117]
[1771982302039,0.002,1910.4,1909.5,3.146]
[1771982302040,13.24188728,1910.4,1909.5,3.146]
[1771982302740,13.24188728,1910.4,1909.5,2.83430067]
[1771982302741,1.30869496,1910.3,1909.5,2.83430067]
[1771982302906,7.22323777,1910.3,1909.5,2.77709559]
[1771982303108,1.30869496,1910.3,1909.5,2.77709559]
[1771982303341,7.22323777,1910.3,1908.8,1.572]
[1771982303710,13.23988728,1910.1,1908.8,1.572]
[1771982304347,5.91454281,1910.0,1908.8,1.572]
[1771982304720,7.22351186,1909.9,1908.8,1.572]
[1771982304926,1.30896905,1909.9,1908.8,2.88171878]
[1771982305231,1.30896905,1909.9,1908.8,1.572]
[1771982305616,6.19962196,1909.4,1907.5,3.144]
[1771982305871,7.32534447,1908.9,1907.5,4.4545687]
[1771982306148,13.52496643,1908.9,1907.5,4.4545687]
[1771982306451,7.32534447,1908.9,1907.5,3.144]
[1771982306612,1.30944898,1909.2,1907.5,4.45461454]
[1771982306815,1.30944898,1909.2,1907.6,17.72668303]
[1771982307039,1.30944898,1909.2,1907.7,5.5902]
[1771982307216,1.30944898,1909.2,1907.9,5.721099]
[1771982307420,1.30944898,1909.2,1907.5,4.45461454]
[1771982307745,7.50907094,1909.2,1907.5,4.45461454]
[1771982308044,7.50907094,1909.2,1907.6,12.859964]
[1771982308541,1.30944898,1909.2,1907.7,7.3662]
[1771982308721,11.43741789,1909.5,1907.8,7.47179992]
[1771982308922,6.19962196,1909.2,1907.7,1.31044553]
[1771982310256,6.19962196,1908.4,1907.5,3.144]
[1771982310750,7.32534447,1908.2,1907.3,0.001]
[1771982311246,6.19962196,1908.1,1907.3,0.001]
[1771982312056,1.31006655,1908.3,1907.3,0.001]
[1771982312275,13.52496643,1908.2,1907.3,0.001]
[1771982312575,6.19962196,1908.1,1907.3,0.001]
[1771982312733,1.31027253,1908.0,1907.3,0.001]
[1771982312931,1.31027253,1908.0,1907.8,0.001]
[1771982313150,1.31027253,1908.0,1907.1,0.001]
[1771982313558,7.32534447,1907.4,1906.1,1.31253203]
[1771982313766,6.19962196,1907.3,1906.1,0.001]
[1771982314659,7.5104441,1907.2,1906.1,0.001]
[1771982314859,1.31082214,1907.2,1906.1,0.001]
[1771982315163,7.5104441,1907.2,1906.1,0.001]
[1771982315553,13.52496643,1906.9,1906.1,0.001]
[1771982315735,13.52496643,1906.9,1906.0,0.001]
[1771982315736,13.52496643,1906.9,1905.8,0.001]
[1771982316152,6.19962196,1906.8,1905.8,0.001]
[1771982316754,7.51078784,1906.7,1905.8,0.001]
[1771982317630,7.32534447,1906.5,1905.8,0.001]
[1771982317835,7.32534447,1906.5,1905.2,3.146]
[1771982317836,6.19962196,1906.4,1905.2,3.146]
[1771982318063,6.19962196,1906.4,1905.2,4.45818858]
[1771982318476,1.31116588,1906.7,1905.2,4.45818858]
[1771982318874,6.19962196,1906.6,1905.2,4.45817985]
[1771982319341,1.31116588,1906.7,1905.3,14.56459403]
[1771982319541,1.31116588,1906.7,1905.4,13.786018]
[1771982319779,1.31116588,1906.7,1905.4,3.9082]
[1771982320087,5.24404979,1907.0,1905.4,4.32379863]
[1771982320381,1.31095962,1907.0,1905.6,6.16139003]
[1771982320748,5.24365292,1907.1,1905.5,7.710034]
[1771982320988,1.31054728,1907.6,1905.8,26.204563]
[1771982321281,1.31054728,1907.6,1905.8,6.16139003]
[1771982321454,7.51016924,1907.6,1905.9,3.801834]
[1771982321650,7.51016924,1907.6,1905.8,6.16139003]
[1771982321851,7.32534447,1907.3,1905.8,6.16139003]
[1771982322183,6.19962196,1907.2,1905.5,5.23678763]
[1771982322351,6.19962196,1907.2,1905.5,0.41559863]
[1771982322551,6.19962196,1907.2,1905.5,8.56439003]
[1771982322766,6.19962196,1907.2,1905.6,1.31192275]
[1771982322767,1.31089088,1907.1,1905.6,1.31192275]
[1771982323256,1.3106847,1907.4,1905.7,26.24135303]
[1771982323558,7.51030666,1907.4,1905.8,6.16139003]
[1771982323756,7.32534447,1907.3,1905.8,6.16139003]
[1771982324187,13.52496643,1907.3,1905.6,1.31192275]
[1771982324557,6.19962196,1907.2,1905.6,1.31192275]
[1771982324776,1.31089088,1907.1,1905.4,5.24769101]
[1771982324978,1.31089088,1907.1,1905.5,9.554434]
[1771982325285,1.31089088,1907.1,1905.9,0.001]
[1771982325656,0.002,1907.3,1905.9,6.16239003]
[1771982325983,0.002,1907.3,1906.0,6.16139003]
[1771982326162,5.24000568,1908.4,1906.8,6.16139003]
[1771982326361,0.002,1907.4,1906.3,6.16139003]
[1771982326772,0.002,1907.4,1906.4,1.31137221]
[1771982328893,12.56535232,1908.7,1906.6,6.16139003]
[1771982329060,5.23885211,1908.9,1906.8,23.84689803]
[1771982329061,6.19962196,1908.8,1906.8,23.84689803]
[1771982329261,11.43906448,1908.8,1906.9,6.16139003]
[1771982329805,6.19962196,1908.7,1906.9,6.16139003]
[1771982330269,6.19962196,1908.7,1907.1,6.16139003]
[1771982330791,5.23944252,1908.8,1907.3,6.16139003]
[1771982331033,7.50852248,1910.1,1907.8,6.16139003]
[1771982331166,6.19962196,1909.4,1907.8,6.16139003]
[1771982331708,2.2315918,1909.7,1907.9,19.46803603]
[1771982331910,2.2315918,1909.7,1908.1,26.859963]
[1771982332194,13.52496643,1909.9,1908.2,6.16139003]
[1771982332394,6.19962196,1909.8,1908.2,6.15839003]
[1771982332619,1.30876348,1910.2,1908.4,6.16139003]
[1771982332770,7.50838544,1910.2,1908.5,6.16139003]
[1771982332968,7.50838544,1910.2,1908.2,1.3101352]
[1771982333212,1.30876348,1910.2,1908.6,6.16139003]
[1771982333397,0.002,1910.3,1908.8,6.16139003]
[1771982333708,0.002,1910.4,1909.5,6.16139003]
[1771982333919,0.002,1910.4,1909.3,13.337145]
[1771982334072,0.002,1910.4,1909.5,36.16139003]
[1771982334274,0.002,1910.4,1909.2,7.32534447]
[1771982334275,1.31065972,1910.4,1909.0,6.16139003]
[1771982334907,0.002,1910.4,1909.1,1.30951757]
[1771982335113,1.30766816,1911.8,1909.8,7.32534447]
[1771982335285,1.30766816,1911.8,1910.5,0.004]
[1771982335606,6.51621688,1911.8,1910.0,5.87990828]